Cogmind - Beta 10.2 @@@ ROGUE MODE // 2021.10.07 @ 17:21:50 Player: Foxolov Result: Destroyed by G-47 Trooper with Particle Gun Performance ------------- Evolutions (2) 1000 Regions Visited (4) 800 Robots Destroyed (9) 45 Value Destroyed (342) 342 Prototype IDs (0) 0 Alien Tech Used (0) 0 Bonus (0) 0 TOTAL SCORE: 2187 Bonus ------- None Cogmind --------- Core Integrity 0/550 Matter 285/300 Energy 37/100 System Corruption 0% Temperature Cool (9) Movement Core (100) Ox1 Location -8/Materials Parts ------- > --- POWER (2) -------- (None) > --- PROPULSION (2) --- (None) > --- UTILITY (4) ------ Small Storage Unit > --- WEAPON (3) ------- (None) > --- INVENTORY (6) ---- (None) Peak State ------------ > --- POWER ------------ Ion Engine > --- PROPULSION ------- Carbon-fiber Leg Carbon-fiber Leg > --- UTILITY ---------- Small Storage Unit Targeting Computer Improved Light Armor Plating > --- WEAPON ----------- Heavy Particle Cannon Heavy Particle Cannon Grenade Launcher > --- INVENTORY -------- Light Ion Engine Carbon-fiber Leg Carbon-fiber Leg Improved Light Armor Plating Heavy Particle Cannon [Rating: 20] Favorites ----------- Power Ion Engine Engine Ion Engine Propulsion Aluminum Leg Leg Aluminum Leg Utility Small Storage Unit Device Weight Redist. System Storage Small Storage Unit Processor Targeting Computer Protection Improved Light Armor Plating Weapon Heavy Particle Cannon Energy Gun EM Pulse Gun Energy Cannon Heavy Particle Cannon Ballistic Gun Light Assault Rifle Launcher Grenade Launcher Special Weapon Mining Laser Build | -11 -10 -9 -9 -8 ------- Run | Scr Mat Mat Min Mat Slots Evolved 4 | . . 2 . 2 Power 1 | . . . . 1 Propulsion . | . . . . . Utility 2 | . . 1 . 1 Weapon 1 | . . 1 . . Parts Attached 26 | 6 2 8 3 7 Power 3 | 1 1 . 1 . Engine 3 | 1 1 . 1 . Core . | . . . . . Reactor . | . . . . . Propulsion 6 | 2 . 2 . 2 Treads . | . . . . . Leg 6 | 2 . 2 . 2 Wheel . | . . . . . Hover . | . . . . . Flight . | . . . . . Utility 7 | 1 1 2 1 2 Device 2 | . . . . 2 Storage 1 | 1 . . . . Processor 1 | . 1 . . . Hackware . | . . . . . Protection 3 | . . 2 1 . Artifact . | . . . . . Weapon 10 | 2 . 4 1 3 Energy Gun 2 | 1 . 1 . . Energy Cannon 5 | . . 2 1 2 Ballistic Gun 1 | 1 . . . . Ballistic Cannon . | . . . . . Launcher 1 | . . 1 . . Special Weapon 1 | . . . . 1 Impact Weapon . | . . . . . Slashing Weapon . | . . . . . Piercing Weapon . | . . . . . Special Melee Weapon . | . . . . . Unidentified Prototypes . | . . . . . Parts Lost 18 | . . 1 6 11 Power 2 | . . . 1 1 Propulsion 4 | . . . . 4 Utility 5 | . . 1 2 2 Weapon 7 | . . . 3 4 Highest Loss Streak 11 | . . 1 6 11 Average Slot Usage (%) 86 | . 90 96 90 48 Engine 11 | . 14 11 11 7 Leg 22 | . 28 22 22 14 Storage 11 | . 14 11 11 9 Processor 7 | . 5 11 7 . Protection 6 | . . 8 11 7 Energy Gun 7 | . 14 6 . . Energy Cannon 9 | . . 13 19 9 Ballistic Gun 5 | . 14 3 . . Launcher 3 | . . 7 7 . Naked Turns . | . . . . . Heaviest Build 31 | 10 12 31 27 20 Greatest Support 30 | 20 20 30 30 30 Greatest Overweight (x) 6 | 3 . 1 . 6 Average Overweight (x) . | 1 . . . . Largest Inventory Capacity 6 | 6 6 6 6 6 Average Capacity 5 | 4 6 6 6 6 Most Carried 6 | 4 6 6 6 5 Average Carried 4 | 1 4 5 5 3 Final Capacity 6 | 6 6 6 6 6 Final Carried 6 | 2 6 6 3 . Class Distribution -------------------- 90% | Mutant 9% | Gunner Dominant Class ---------------- Mutant | -10/Materials Mutant | -9/Materials Mutant | -9/Mines Mutant | -8/Materials Resources | -11 -10 -9 -9 -8 ----------- Run | Scr Mat Mat Min Mat Matter Collected 405 | 230 62 98 15 . Remotely . | . . . . . Salvage Created 359 | . 223 136 . . Parts 24 | . 13 11 . . Haulers Intercepted . | . . . . . Recyclers Shooed . | . . . . . Parts Field Recycled . | . . . . . Retrieved Matter . | . . . . . Parts Self-Destructed . | . . . . . Prevented . | . . . . . Kills | -11 -10 -9 -9 -8 ------- Run | Scr Mat Mat Min Mat Combat Hostiles Destroyed 8 | . 4 3 1 . Guns 6 | . 4 2 . . Cannons 2 | . . 1 1 . Classes Destroyed 4 | . 2 1 1 . Operator 1 | . 1 . . . Grunt 5 | . 4 1 . . Sentry 2 | . . 2 . . Demolisher 1 | . . . 1 . Best Kill Streak 3 | . 3 1 1 . Combat Bots Only 2 | . 2 1 1 . Max Kills in Single Turn 1 | . 1 1 1 . Gunslinging . | . . . . . Exploded . | . . . . . Melee . | . . . . . Uniques/NPCs Destroyed . | . . . . . Combat | -11 -10 -9 -9 -8 -------- Run | Scr Mat Mat Min Mat Damage Taken 2487 | . 177 157 697 1456 Core 699 | . 41 25 83 550 Absorbed by Shields . | . . . . . Core Remaining (%) 85 | 100 83 . 73 . Volleys Fired 34 | . 12 5 11 6 Largest 3 | . 2 3 2 3 Hottest 187 | . 60 180 150 187 Shots Fired 61 | . 24 15 14 8 Gun 33 | . 24 9 . . Cannon 26 | . . 4 14 8 Launcher 2 | . . 2 . . Special . | . . . . . Kinetic 15 | . 12 3 . . Thermal 26 | . . 7 14 5 Explosive 2 | . . 2 . . Electromagnetic 18 | . 12 3 . 3 Robot Hit Streak 14 | . 14 9 12 4 Robot Miss Streak 3 | . 1 3 1 1 Penetration Max . | . . . . . Secondary Targets . | . . . . . Shots Hit Robots 47 | . 19 10 12 6 Core Hits 22 | . 9 9 2 2 Critical Hits . | . . . . . Critical Kills . | . . . . . Critical Parts Destroyed . | . . . . . Melee Attacks . | . . . . . Impact . | . . . . . Slashing . | . . . . . Piercing . | . . . . . Sneak Attacks . | . . . . . Combat Hostiles . | . . . . . Follow-up Attacks . | . . . . . Damage Inflicted 858 | . 224 191 300 143 Guns 312 | . 224 88 . . Cannons 518 | . . 75 300 143 Explosions 14 | . . 14 . . Melee . | . . . . . Ramming 14 | . . 14 . . Kinetic 99 | . 77 22 . . Thermal 545 | . . 120 300 125 Explosive 14 | . . 14 . . Electromagnetic 186 | . 147 21 . 18 Impact . | . . . . . Slashing . | . . . . . Piercing . | . . . . . Highest Corruption . | . . . . . Average Corruption . | . . . . . Corruption Purged . | . . . . . Overload Shots . | . . . . . Overflow Damage 6 | . . . 6 . Projectiles 6 | . . . 6 . Explosions . | . . . . . Melee . | . . . . . Knockbacks . | . . . . . Impact . | . . . . . Kinetic . | . . . . . Secondary . | . . . . . Self-Inflicted Damage 38 | . . 38 . . Shots 1 | . . 1 . . Rammed 2 | . . 2 . . Targets Rammed 3 | . . 3 . . Kicked 1 | . . 1 . . Crushed . | . . . . . Highest Temperature 468 | . 85 202 468 194 Average Temperature 130 | . 37 84 304 85 Received Heat Transfer 759 | . 102 36 . 621 Effects 1 | . . . 1 . Interference 1 | . . . 1 . Siege Activations . | . . . . . Robots Corrupted . | . . . . . Combat Hostiles . | . . . . . Parts Fried . | . . . . . Impact Corruptions . | . . . . . Robots Melted . | . . . . . Combat Hostiles . | . . . . . Parts Melted . | . . . . . Heat Transferred 790 | . . 161 444 185 Parts Sabotaged . | . . . . . Parts Stolen . | . . . . . Parts Stripped . | . . . . . Power Chain Reactions . | . . . . . Missiles Intercepted . | . . . . . Alert | -11 -10 -9 -9 -8 ------- Run | Scr Mat Mat Min Mat Peak Influence 194 | . 150 194 75 33 Initial 75 | . . 63 75 13 Average 68 | . 45 124 63 15 Maximum Alert Level . | . . . . . Low Security (%) 100 | 100 100 100 100 100 Level 1 . | . . . . . Level 2 . | . . . . . Level 3 . | . . . . . Level 4 . | . . . . . Level 5 . | . . . . . High Security . | . . . . . Max Security . | . . . . . Squads Dispatched 2 | . 1 1 . . Investigation . | . . . . . Extermination . | . . . . . Reinforcement 2 | . 1 1 . . Assault . | . . . . . Garrison . | . . . . . Intercept . | . . . . . Construction Impeded . | . . . . . Haulers Reinforced . | . . . . . Stealth | -11 -10 -9 -9 -8 --------- Run | Scr Mat Mat Min Mat Distress Signals 1 | . . 1 . . Communications Jammed . | . . . . . Distress Signals . | . . . . . Times Spotted 21 | . 10 4 2 5 Peak Tracking Total 5 | . 3 1 2 5 Tactical Retreats 1 | . 1 . . . Traps | -11 -10 -9 -9 -8 ------- Run | Scr Mat Mat Min Mat Traps Triggered . | . . . . . Indirectly . | . . . . . Trap Hack Attempts . | . . . . . Triggered . | . . . . . Disarmed . | . . . . . Reprogrammed . | . . . . . Reused . | . . . . . Traps Extracted . | . . . . . Installed . | . . . . . Triggered . | . . . . . Machines | -11 -10 -9 -9 -8 ---------- Run | Scr Mat Mat Min Mat Machines Disabled . | . . . . . Max in Single Turn . | . . . . . Machines Sabotaged . | . . . . . Garrisons Compromised . | . . . . . Overloaded Fab Kills . | . . . . . Fab Network Shutdowns . | . . . . . Hacking | -11 -10 -9 -9 -8 --------- Run | Scr Mat Mat Min Mat Machines Accessed 2 | . . 2 . . Terminals 1 | . . 1 . . Fabricators . | . . . . . Repair Stations . | . . . . . Recycling Units 1 | . . 1 . . Scanalyzers . | . . . . . Garrison Access . | . . . . . Total Hacks 4 | . . 4 . . Successful 3 | . . 3 . . Failed 1 | . . 1 . . Catastrophic . | . . . . . Database Lockouts . | . . . . . Manual . | . . . . . Terminals 2 | . . 2 . . Fabricators . | . . . . . Repair Stations . | . . . . . Recycling Units 2 | . . 2 . . Scanalyzers . | . . . . . Garrison Access . | . . . . . Terminal Hacks 1 | . . 1 . . Branch Access Points 1 | . . 1 . . Fabricator Hacks . | . . . . . Repair Station Hacks . | . . . . . Recycling Unit Hacks 2 | . . 2 . . Recycle Component 1 | . . 1 . . Retrieve Components 1 | . . 1 . . Scanalyzer . | . . . . . Garrison Access Hacks . | . . . . . Unauthorized Hacks . | . . . . . Terminals . | . . . . . Fabricators . | . . . . . Repair Stations . | . . . . . Recycling Units . | . . . . . Scanalyzers . | . . . . . Garrison Access . | . . . . . Data Cores Recovered . | . . . . . Used . | . . . . . Hacking Detections 1 | . . 1 . . Full Trace Events . | . . . . . Feedback Events . | . . . . . Feedback Blocked . | . . . . . Robot Schematics Acquired . | . . . . . Robots Built . | . . . . . Matter . | . . . . . Time . | . . . . . Total Robot Build Rating . | . . . . . Part Schematics Acquired . | . . . . . Parts Built . | . . . . . Matter . | . . . . . Time . | . . . . . Total Part Build Rating . | . . . . . Parts Repaired . | . . . . . Time . | . . . . . Parts Recycled 1 | . . 1 . . Recycled Matter . | . . . . . Retrieved Matter . | . . . . . Retrieved Components 4 | . . 4 . . Parts Scanalyzed . | . . . . . Part Schematics Acquired . | . . . . . Parts Damaged . | . . . . . Bothacking | -11 -10 -9 -9 -8 ------------ Run | Scr Mat Mat Min Mat Used RIF Installer . | . . . . . Robots Hacked . | . . . . . Non-combat . | . . . . . Combat . | . . . . . Robot Hacks Applied . | . . . . . Relay Couplers Released . | . . . . . Robots Rewired . | . . . . . Allies Hacked . | . . . . . Hacks Repelled . | . . . . . Allies | -11 -10 -9 -9 -8 -------- Run | Scr Mat Mat Min Mat Total Allies . | . . . . . Largest Group . | . . . . . Highest-Rated Group . | . . . . . Highest-Rated Ally . | . . . . . Total Orders . | . . . . . Ally Attacks . | . . . . . Total Damage . | . . . . . Kills . | . . . . . Allies Corrupted . | . . . . . Allies Melted . | . . . . . Intel | -11 -10 -9 -9 -8 ------- Run | Scr Mat Mat Min Mat Robot Analysis Total . | . . . . . Derelict Logs Recovered . | . . . . . Drone Launches . | . . . . . Drone Recoveries . | . . . . . Exploration | -11 -10 -9 -9 -8 ------------- Run | Scr Mat Mat Min Mat Turns Passed 996 | 96 276 378 104 142 Spaces Moved 650 | 77 193 242 64 74 Core 79 | 76 . . . 3 Treads . | . . . . . Legs 571 | 1 193 242 64 71 Wheels . | . . . . . Hover . | . . . . . Flight . | . . . . . Fastest Speed 50 | 50 120 120 120 100 Average Speed 125 | 108 120 137 120 125 Slowest Speed 350 | 200 120 150 120 350 Overloaded Moves . | . . . . . Propulsion Burnouts . | . . . . . Robots Hopped . | . . . . . Cave-ins Triggered . | . . . . . Exploration Rate (%) 15 | 5 28 24 12 8 Regions Visited 4 Branch Regions 1 Pre-discovered Areas . | . . . . . Known Exits Taken 1 | . . 1 . . Unknown Exits Taken 3 | 1 1 . 1 . Scrap Searched . | . . . . . Spaces Dug . | . . . . . Terrain Destroyed 19 | . . 17 2 . Melee . | . . . . . Projectile 3 | . . 1 2 . AOE 16 | . . 16 . . Terrain Rammed . | . . . . . Walls Destroyed . | . . . . . Machines Disabled . | . . . . . Actions | -11 -10 -9 -9 -8 --------- Run | Scr Mat Mat Min Mat Total 779 | 92 216 278 77 116 Wait 27 | . 1 1 . 25 Move 646 | 76 192 241 63 74 Hop . | . . . . . Pick Up 31 | 9 7 12 . 3 Fast Attach . | . . . . . Attach 23 | 6 1 6 3 7 Detach 1 | . . . . 1 Swap 3 | . 1 2 . . Drop 11 | 1 2 8 . . Fire 34 | . 12 5 11 6 Melee . | . . . . . Ram . | . . . . . Kick 3 | . . 3 . . Crush . | . . . . . Escape Stasis . | . . . . . Rewire . | . . . . . Trap . | . . . . . Miscellaneous . | . . . . . Route ------- -11/Scrapyard -10/Materials -9/Materials (discovered 3 exits: [*Mat] / *Min x2) -9/Mines -8/Materials History --------- Turn | Location | Event 9 | -11/Scrapyard | Discovered new exit (range 14) 97 | -11/Scrapyard | Entered Materials 315 | -10/Materials | Build established: Mutant 352 | -10/Materials | Discovered new exit (range 12) 373 | -10/Materials | Entered another Materials area 373 | -9/Materials | Evolved 2 slots: Utility x1, Weapon x1 604 | -9/Materials | Discovered new exit (range 16) 625 | -9/Materials | Identified exit to Mines 751 | -9/Materials | Entered Mines 771 | -9/Mines | Discovered new exit (range 9) 817 | -9/Mines | Assembled infested the area 855 | -9/Mines | Entered Materials 855 | -8/Materials | Evolved 2 slots: Power x1, Utility x1 872 | -8/Materials | Lost 6 parts (1p2u3w) 987 | -8/Materials | Core integrity fell below 50% 993 | -8/Materials | Core integrity fell below 20% 997 | -8/Materials | Destroyed by G-47 Trooper with Particle Gun Last Messages --------------- The unstable cave ceiling collapses. U-05 Engineer lays Concrete. PARAMETERS=POWER_1,UTILITY_1 LOCATION=UNKNOWN GOAL=ESCAPE Acquired Weight Redist. System. Carbon-fiber Leg destroyed. Acquired Lgt. EM Pulse Cannon. Carbon-fiber Leg destroyed. Acquired Lgt. EM Pulse Cannon. Hvy. Particle Cannon destroyed. To regain energy, simply wait via the mouse wheel '.', or KP5. Also make sure your per-turn energy generation is a net positive, and consider deactivating power-draining parts if not. Lgt. Ion Engine destroyed. Imp. Light Armor Plating destroyed. Lgt. EM Pulse Cannon destroyed. Mining Laser destroyed. Carbon-fiber Leg destroyed. Weight Redist. System destroyed. Map ----- +----------------------------------------------------+ | | | | | | | | | | | | | | | | | | | | | | | | | | | | | | | | | | | | | | | | | | | | | | | ?##########################??????????????????????? | | ?# ## "" !!] ##?????????????????????? | | ?# ## ""S !!]@Y#?????????????????????? | | ## ## "" ! ##?????????????????????? | | + ## g #??????????????????????? | | ## ## Y gg#??????????????????????? | | ?# ###+#####/##??????????????????????? | | ?#######+####+#### ### ###????????????????????? | | ####### ??????????????? | | ??????????????? | | ####### ############# ??????????????? | | ??????# #???????????? """ """???????????????? | | ??????# #???????????# """ "?????????????????? | | ??????# #???????????# """ "?????????????????? | | ??????# ##??????????# ?? ?????????????????? | | ####### #??????????# ? ???????????????????? | | # #??????????# ?? ???????????????????? | | # #######????? ??????????????????????? | | """ + ??????????????????????? | | """ # #######????????????????????????????????? | | """ # #??????????????????????????????????????? | | # #??????????????????????????????????????? | | ####### #??????????????????????????????????????? | | ??????# #??????????????????????????????????????? | | ??????# #??????????????????????????????????????? | | ??????# #??????????????????????????????????????? | | ?????? #??????????????????????????????????????? | +----------------------------------------------------+ Best States ------------- Heat Dissipation 31 Energy Generation 10 Energy Capacity 250 Matter Stores 300 Matter Capacity 300 Sight Range 16 Terrain Scan Density 10 Additional Mass Support 6 Armor Coverage 225 Evasion (%) 50 Targeting Accuracy 5 Item Schematics ----------------- None Robot Schematics ------------------ None Fabricated ------------ Nothing Alien Tech Used ----------------- None Achievements -------------- None Challenges ------------ None Game ------ Seed GatlingDataLog Manual? 0 Play Time 00:22:59 Cumulative 2.1 hours Start 2021.10.07 @ 16:35:12 End 2021.10.07 @ 17:21:50 Sessions 2 Manual Loads 0 Difficulty Rogue Special Mode None Game No. 5 Rogue 5 Adventurer 0 Explorer 0 Win Type - Total 0 Types 0/0/0/0/0/0/0/0/0 Lore% 9 Gallery% 5 Achievement% 3 Wizard Run 0 Options --------- ASCII 1 Keyboard 0 Movement Arrows Keybinds 0 Fullscreen 1 Font 18/Terminus Map View 76x50 Tactical HUD 0 Map Filters NONE Filters NONE Steam 1 RUN: cfa0037b-cb9b-42b8-b51a-4ebe835b8f58